Workbook

Sheet паспорт
A1: ПАТ "УКРТРАНСГАЗ" | G1: ПАСПОРТ ФІЗИКО-ХІМІЧНИХ ПОКАЗНИКІВ ПРИРОДНОГО ГАЗУ № 401
A2: Філія "УМГ "Прикарпаттрансгаз" | G2: переданого Богородчанським ЛВУМГ та прийнятого ПАТ "Івано - Франківськгаз", ПАТ "Тернопільгаз"
A3: Богородчанське ЛВУМГ | G3: Маршрут № 401
A4: Вимірювальна хіміко-аналітична лабораторія
A5: Свідоцтво № ІФ 760 чинне до 12.06.2019р. | K5: по газопроводу "УПУ" | V5: за період з | X5: 2017-03-01 | Z5: по | AA5: 2017-03-31
A7: Число місяця | B7: Компонентний склад, % мол. | N7: Фізико-хімічні показники газу обчислені на основі компонентного складу, 101,325 кПа | X7: Температура точки роси вологи (Р = 3.92 МПа), ºС | Y7: Температура точки роси вуглеводнів, ºС | Z7: Вміст сірководню, г/м3 | AA7: Вміст меркаптанової сірки, г/м3 | AB7: Вміст механічних домішок, г/м3
N8: Густина абсолютна, кг/м3,при 20 ºС, | O8: Температура вимірювання/згоряння при 20/25°С
B9: метан, С1 | C9: етан, С2 | D9: пропан, С3 | E9: ізо-бутан, і-С4 | F9: н-бутан, н-С4 | G9: нео-пентан, нео-С5 | H9: ізо-пентан, і-С5 | I9: н-пентан, н-С5 | J9: гексани та вищі, С6+ | K9: кисень, О2 | L9: азот, N2 | M9: діоксид вуглецю, CО2 | O9: Теплота згоряння нижча | R9: Теплота згоряння вища | U9: Число Воббе вище
O10: ккал/м3 | P10: МДж/м3 | Q10: кВт⋅год/м3 | R10: ккал/м3 | S10: МДж/м3 | T10: кВт⋅год/м3 | U10: ккал/м3 | V10: МДж/м3 | W10: кВт⋅год/м3
A11: 1 | O11: =P11*238.8459 -> 8169.198549 | P11: 34.2028 | Q11: =P11/3.6 -> 9.500777778 | R11: =S11*238.8459 -> 9055.269068 | S11: 37.9126 | T11: =S11/3.6 -> 10.53127778 | X11: -20.6 | AC11: =SUM(B11:M11)+$K$42+$N$42 -> 0
A12: 2 | O12: =P12*238.8459 -> 8169.198549 | P12: 34.2028 | Q12: =P12/3.6 -> 9.500777778 | R12: =S12*238.8459 -> 9055.269068 | S12: 37.9126 | T12: =S12/3.6 -> 10.53127778 | X12: -20.3 | AC12: 0
A13: 3 | O13: =P13*238.8459 -> 8169.198549 | P13: 34.2028 | Q13: =P13/3.6 -> 9.500777778 | R13: =S13*238.8459 -> 9055.269068 | S13: 37.9126 | T13: =S13/3.6 -> 10.53127778 | X13: -20.2 | AC13: 0 | AD13: =IF(AC13=100,"ОК"," ") -> 
A14: 4 | O14: =P14*238.8459 -> 8169.198549 | P14: 34.2028 | Q14: =P14/3.6 -> 9.500777778 | R14: =S14*238.8459 -> 9055.269068 | S14: 37.9126 | T14: =S14/3.6 -> 10.53127778 | AC14: 0 | AD14: =IF(AC14=100,"ОК"," ") -> 
A15: 5 | O15: =P15*238.8459 -> 8169.198549 | P15: 34.2028 | Q15: =P15/3.6 -> 9.500777778 | R15: =S15*238.8459 -> 9055.269068 | S15: 37.9126 | T15: =S15/3.6 -> 10.53127778 | AC15: 0
A16: 6 | B16: 96.1068 | C16: 2.1234 | D16: 0.6444 | E16: 0.1002 | F16: 0.096 | G16: 0.0017 | H16: 0.0193 | I16: 0.0131 | J16: 0.0121 | K16: 0.004 | L16: 0.7251 | M16: 0.1539 | N16: 0.6983 | O16: =P16*238.8459 -> 8174.93085 | P16: 34.2268 | Q16: 9.5072 | R16: =S16*238.8459 -> 9061.431293 | S16: 37.9384 | T16: 10.5381 | U16: =V16*238.8459 -> 11900.99854 | V16: 49.8271 | W16: 13.8374 | X16: -20 | Y16: -15.6 | AC16: 100 | AD16: ОК
A17: 7 | O17: =P17*238.8459 -> 8174.93085 | P17: 34.2268 | Q17: 9.5072 | R17: =S17*238.8459 -> 9061.431293 | S17: 37.9384 | T17: 10.5381 | X17: -20.2 | AC17: 0
A18: 8 | O18: =P18*238.8459 -> 8174.93085 | P18: 34.2268 | Q18: 9.5072 | R18: =S18*238.8459 -> 9061.431293 | S18: 37.9384 | T18: 10.5381 | AC18: 0
A19: 9 | O19: 8174.93085 | P19: 34.2268 | Q19: 9.5072 | R19: 9061.431293 | S19: 37.9384 | T19: 10.5381 | X19: -20.1 | AC19: 0
A20: 10 | O20: 8174.93085 | P20: 34.2268 | Q20: 9.5072 | R20: 9061.431293 | S20: 37.9384 | T20: 10.5381 | X20: -19.9 | AC20: 0
A21: 11 | O21: 8174.93085 | P21: 34.2268 | Q21: 9.5072 | R21: 9061.431293 | S21: 37.9384 | T21: 10.5381 | AC21: 0
A22: 12 | O22: 8174.93085 | P22: 34.2268 | Q22: 9.5072 | R22: 9061.431293 | S22: 37.9384 | T22: 10.5381 | AC22: 0
A23: 13 | B23: 95.695 | C23: 2.3697 | D23: 0.746 | E23: 0.118 | F23: 0.114 | G23: 0.002 | H23: 0.0209 | I23: 0.0155 | J23: 0.0156 | K23: 0.0041 | L23: 0.7275 | M23: 0.1717 | N23: 0.702 | O23: 8210.112851 | P23: 34.3741 | Q23: =P23/3.6 -> 9.548361111 | R23: 9099.049522 | S23: 38.0959 | T23: =S23/3.6 -> 10.58219444 | U23: =V23*238.8459 -> 11918.91199 | V23: 49.9021 | W23: 13.8338 | X23: -20.3 | Y23: -16.8 | AC23: 100 | AD23: ОК
A24: 14 | O24: =P24*238.8459 -> 8210.112851 | P24: 34.3741 | Q24: =P24/3.6 -> 9.548361111 | R24: =S24*238.8459 -> 9099.049522 | S24: 38.0959 | T24: =S24/3.6 -> 10.58219444 | X24: -20.8 | AC24: 0
A25: 15 | O25: =P25*238.8459 -> 8210.112851 | P25: 34.3741 | Q25: =P25/3.6 -> 9.548361111 | R25: =S25*238.8459 -> 9099.049522 | S25: 38.0959 | T25: =S25/3.6 -> 10.58219444 | X25: -21.1 | AC25: 0
A26: 16 | O26: 8210.112851 | P26: 34.3741 | Q26: 9.548361111 | R26: 9099.049522 | S26: 38.0959 | T26: 10.58219444 | X26: -20.6 | Z26: 0.000248 | AA26: <0,0002 | AB26: 0 | AC26: 0
A27: 17 | O27: 8210.112851 | P27: 34.3741 | Q27: 9.548361111 | R27: 9099.049522 | S27: 38.0959 | T27: 10.58219444 | X27: -20.9 | AC27: 0
A28: 18 | O28: 8210.112851 | P28: 34.3741 | Q28: 9.548361111 | R28: 9099.049522 | S28: 38.0959 | T28: 10.58219444 | AC28: 0
A29: 19 | O29: 8210.112851 | P29: 34.3741 | Q29: 9.548361111 | R29: 9099.049522 | S29: 38.0959 | T29: 10.58219444 | AC29: 0
A30: 20 | B30: 95.6366 | C30: 2.4698 | D30: 0.7718 | E30: 0.1214 | F30: 0.1169 | G30: 0.0013 | H30: 0.0214 | I30: 0.015 | J30: 0.0065 | K30: 0.0045 | L30: 0.659 | M30: 0.1758 | N30: 0.7024 | O30: 8222.914991 | P30: 34.4277 | Q30: 9.56325 | R30: 9112.950353 | S30: 38.1541 | T30: 10.59836111 | U30: =V30*238.8459 -> 11933.4577 | V30: 49.963 | W30: 13.8786 | X30: -21 | Y30: -16.6 | AC30: 100 | AD30: =IF(AC30=100,"ОК"," ") -> ОК
A31: 21 | O31: =P31*238.8459 -> 8222.914991 | P31: 34.4277 | Q31: =P31/3.6 -> 9.56325 | R31: =S31*238.8459 -> 9112.950353 | S31: 38.1541 | T31: =S31/3.6 -> 10.59836111 | X31: -20.8 | AC31: 0
A32: 22 | O32: =P32*238.8459 -> 8222.914991 | P32: 34.4277 | Q32: =P32/3.6 -> 9.56325 | R32: =S32*238.8459 -> 9112.950353 | S32: 38.1541 | T32: =S32/3.6 -> 10.59836111 | X32: -20.5 | AC32: 0
A33: 23 | O33: 8222.914991 | P33: 34.4277 | Q33: 9.56325 | R33: 9112.950353 | S33: 38.1541 | T33: 10.59836111 | X33: -20.3 | AC33: 0 | AD33: =IF(AC33=100,"ОК"," ") -> 
A34: 24 | O34: 8222.914991 | P34: 34.4277 | Q34: 9.56325 | R34: 9112.950353 | S34: 38.1541 | T34: 10.59836111 | X34: -20.9 | AC34: 0
A35: 25 | O35: 8222.914991 | P35: 34.4277 | Q35: 9.56325 | R35: 9112.950353 | S35: 38.1541 | T35: 10.59836111 | AC35: 0
A36: 26 | O36: 8222.914991 | P36: 34.4277 | Q36: 9.56325 | R36: 9112.950353 | S36: 38.1541 | T36: 10.59836111 | AC36: 0
A37: 27 | B37: 95.299 | C37: 2.6403 | D37: 0.8409 | E37: 0.1339 | F37: 0.13 | G37: 0.0018 | H37: 0.0245 | I37: 0.0172 | J37: 0.159 | K37: 0.004 | L37: 0.7037 | M37: 0.1888 | N37: 0.7054 | O37: =P37*238.8459 -> 8246.680158 | P37: 34.5272 | Q37: =P37/3.6 -> 9.590888889 | R37: =S37*238.8459 -> 9138.220249 | S37: 38.2599 | T37: =S37/3.6 -> 10.62775 | U37: =V37*238.8459 -> 11940.67085 | V37: 49.9932 | W37: 13.8338 | X37: -21.1 | Y37: -16.8 | AC37: 100.1431
A38: 28 | O38: =P38*238.8459 -> 8246.680158 | P38: 34.5272 | Q38: =P38/3.6 -> 9.590888889 | R38: =S38*238.8459 -> 9138.220249 | S38: 38.2599 | T38: =S38/3.6 -> 10.62775 | X38: -20.5
A39: 29 | O39: =P39*238.8459 -> 8246.680158 | P39: 34.5272 | Q39: =P39/3.6 -> 9.590888889 | R39: =S39*238.8459 -> 9138.220249 | S39: 38.2599 | T39: =S39/3.6 -> 10.62775 | X39: -20.1
A40: 30 | O40: =P40*238.8459 -> 8246.680158 | P40: 34.5272 | Q40: =P40/3.6 -> 9.590888889 | R40: =S40*238.8459 -> 9138.220249 | S40: 38.2599 | T40: =S40/3.6 -> 10.62775 | X40: -20.4
A41: 31 | O41: =P41*238.8459 -> 8246.680158 | P41: 34.5272 | Q41: =P41/3.6 -> 9.590888889 | R41: =S41*238.8459 -> 9138.220249 | S41: 38.2599 | T41: =S41/3.6 -> 10.62775 | X41: -20.2 | AC41: 0
A42: Рівень одоризації відповідає чинним нормативним документам | O42: 8202.47935 | P42: 34.34214006 | Q42: 9.539426232 | R42: 9090.936748 | S42: 38.06193344 | T42: 10.57267881
H43: Середньозважене значення теплоти згоряння:
B45: Заступник начальника Богородчанського ЛВУМГ | N45: Басистюк В.С. | V45: 03.04.2017р.
C46: Підрозділу підприємства, якому підпорядкована лабораторія | N46: прізвище | S46: підпис | V46: дата
B47: Хімік І кат. ВХАЛ Богородчанського ЛВУМГ | N47: Сапіжак Н.М. | V47: 03.04.2017р.
C48: Лабораторія, де здійснювалось вимірювання газу | N48: прізвище | S48: підпис | V48: дата
B49: Начальник служби ГВ та М | N49: Стоколоса А.Б. | V49: 03.04.2017р.
C50: Підрозділу, відповідального за облік газу за маршрутом | N50: прізвище | S50: підпис | V50: дата

Sheet додаток
A2: Додаток до Паспорту фізико-хімічних показників природного газу № 401
A4: Область | B4: ГРС, прямий споживач | C4: Cередньозважене значення вищої теплоти згоряння
C5: МДж/м³ | D5: ккал/м³ | E5: кВт*год./м³
A6: Івано - Франківська область | B6: ГРС Михальче | C6: 38.06386887 | D6: 9091.399017 | E6: 10.57329691
B7: ГРС Чернелиця | C7: 38.06371289 | D7: 9091.361763 | E7: 10.57325358
B8: ГРС Обертин | C8: 38.0636579 | D8: 9091.348628 | E8: 10.5732383
B9: ГРС Живачів | C9: 38.06493657 | D9: 9091.654033 | E9: 10.57359349
B10: ГРС Богородчани | C10: 38.06198647 | D10: 9090.949414 | E10: 10.57277402
A11: Тернопільська область | B11: ГРС Колиндяни | C11: 38.06133128 | D11: 9090.792925 | E11: 10.57259202
B12: ГРС Борщів | C12: 38.06134953 | D12: 9090.797283 | E12: 10.57259709
B13: ГРС Товсте | C13: 38.06092885 | D13: 9090.696806 | E13: 10.57248024
B14: ГРС Торське | C14: 38.06089476 | D14: 9090.688663 | E14: 10.57247077
B15: ГРС Заліщики | C15: 38.06113719 | D15: 9090.746567 | E15: 10.57253811
B16: ГРС Шутроминці | C16: 38.06402187 | D16: 9091.43556 | E16: 10.57333941
A17: Середньозважене значення вищої теплоти згоряння по маршруту № 401 | C17: 38.06193344 | D17: 9090.936748 | E17: 10.57275929
A21: Заступник начальника Богородчанського ЛВУМГ | D21: Басистюк В.С. | H21: 03.04.2017р.
A22: Підрозділу підприємства, якому підпорядкована лабораторія | D22: прізвище | G22: підпис | H22: дата
A23: Хімік І кат. ВХАЛ Богородчанського ЛВУМГ | D23: Сапіжак Н.М. | H23: 03.04.2017р.
A24: Лабораторія, де здійснювалось вимірювання газу | E24: прізвище | G24: підпис | H24: дата
A25: Начальник служби ГВ та М | D25: Стоколоса А.Б. | H25: 03.04.2017р.
A26: Підрозділу, відповідального за облік газу за маршрутом | E26: прізвище | G26: підпис | H26: дата

Sheet variablesList (hidden)
A1: 3 | B1: x:\gaysin | C1: 10, 11, 24, 25, 127, 128, 132, 180, 207, 215 | D1: x:\
B2: x:\Illinci
B3: x:\Talne
